fUST/lending_fUST_20241226
["ID","MTS","AMOUNT","RATE_DAILY","PERIOD"]
[346651875,1735152643002,-1203.9,0.00013681,2]
[346651877,1735152643012,-500.0,0.00013681,2]
[346651879,1735152643022,-500.0,0.00013698,2]
[346651881,1735152643031,-500.0,0.00013698,2]
[346651883,1735152643040,-369.81574707,0.00013833,2]
[346652004,1735152644117,-361.95984905,0.00013833,2]
[346652026,1735152644316,-313.80558468,0.00013833,2]
[346652028,1735152644325,-3400.59854172,0.000139,2]
[346652030,1735152644336,-6280.762866,0.000139,2]
[346652032,1735152644348,-1571.55613673,0.000139,2]
[346652217,1735152646812,-532.58,0.0001094,2]
[346652219,1735152646821,-500.0,0.00010941,2]
[346652221,1735152646831,-590.79,0.00011215,2]
[346652223,1735152646840,-21220.19742087,0.000139,2]
[346652225,1735152646854,-22857.39809607,0.000139,2]
[346652232,1735152646912,-323.56061344,0.000139,2]
[346652235,1735152646926,-602.46540731,0.000139,2]
[346653750,1735152878494,991.0053927,0.00010025,2]
[346653751,1735153357081,250.0,9.891e-05,2]
[346653755,1735153776045,11942.7598698,9.916e-05,2]
[346653812,1735153832154,-434.0462623,0.00010717,2]
[346653814,1735153832163,-1570.4780389,0.00010815,2]
[346653829,1735153832297,-300.0,0.00010914,2]
[346653831,1735153832308,-300.0,0.00010914,2]
[346653833,1735153832318,-500.0,0.00010914,2]
[346653835,1735153832327,-500.0,0.00010915,2]
[346653837,1735153832337,-500.0,0.00010915,2]
[346653839,1735153832347,-500.0,0.00010915,2]
[346653841,1735153832356,-500.0,0.00010915,2]
[346653843,1735153832366,-500.0,0.00010915,2]
[346653845,1735153832375,-1862.41,0.00010915,2]
[346653847,1735153832384,-500.0,0.00010915,2]
[346653849,1735153832394,-682.87,0.00010915,2]
[346653851,1735153832403,-500.0,0.00010915,2]
[346653853,1735153832412,-500.0,0.00010915,2]
[346653855,1735153832421,-500.0,0.00010915,2]
[346653857,1735153832430,-637.94,0.00010915,2]
[346653859,1735153832440,-500.0,0.00010915,2]
[346653861,1735153832449,-500.0,0.00010915,2]
[346653863,1735153832458,-500.0,0.00010915,2]
[346653865,1735153832467,-500.0,0.00010915,2]
[346653867,1735153832476,-862.68,0.00010915,2]
[346653869,1735153832485,-500.0,0.00010915,2]
[346653871,1735153832495,-500.0,0.00010915,2]
[346653873,1735153832504,-500.0,0.00010915,2]
[346653875,1735153832513,-500.0,0.00010915,2]
[346653877,1735153832523,-500.0,0.00010915,2]
[346653879,1735153832532,-500.0,0.00010915,2]
[346653881,1735153832541,-500.0,0.00010915,2]
[346653884,1735153832551,-500.0,0.00010915,2]
[346653886,1735153832560,-598.73,0.00010915,2]
[346653888,1735153832570,-500.0,0.00010915,2]
[346653890,1735153832579,-500.0,0.00010915,2]
[346653892,1735153832588,-500.0,0.00010915,2]
[346653894,1735153832598,-500.0,0.00010915,2]
[346653896,1735153832607,-500.0,0.00010915,2]
[346653898,1735153832617,-500.0,0.00010915,2]
[346653900,1735153832626,-500.0,0.00010915,2]
[346653902,1735153832636,-500.0,0.00010915,2]
[346653904,1735153832646,-500.0,0.00010915,2]
[346653906,1735153832656,-500.0,0.00010915,2]
[346653908,1735153832665,-500.0,0.00010915,2]
[346653910,1735153832674,-500.0,0.00010915,2]
[346653912,1735153832683,-226.16952946,0.00010915,2]
[346653914,1735153832692,-500.0,0.00010915,2]
[346653916,1735153832702,-500.0,0.00010915,2]
[346653918,1735153832711,-500.0,0.00010915,2]
[346653920,1735153832721,-500.0,0.00010915,2]
[346653922,1735153832730,-500.0,0.00010915,2]
[346653924,1735153832740,-500.0,0.00010915,2]
[346653926,1735153832751,-500.0,0.00010915,2]
[346653928,1735153832760,-500.0,0.00010915,2]
[346653930,1735153832770,-544.35337231,0.00010915,2]
[346653932,1735153832782,-500.0,0.00010915,2]
[346653934,1735153832791,-500.0,0.00010915,2]
[346653936,1735153832801,-500.0,0.00010915,2]
[346653938,1735153832811,-500.0,0.00010915,2]
[346653940,1735153832821,-500.0,0.00010915,2]
[346653942,1735153832830,-313.21618957,0.00010915,2]
[346653944,1735153832840,-500.0,0.00010915,2]
[346653946,1735153832850,-500.0,0.00010915,2]
[346653948,1735153832860,-500.0,0.00010915,2]
[346653949,1735153832870,-500.0,0.00010915,2]
[346653952,1735153832880,-500.0,0.00010915,2]
[346653954,1735153832889,-500.0,0.00010915,2]
[346653956,1735153832899,-649.19617137,0.00010915,2]
[346653958,1735153832908,-250.60978678,0.00010915,2]
[346653960,1735153832918,-500.0,0.00010915,2]
[346653962,1735153832928,-500.0,0.00010915,2]
[346653964,1735153832938,-500.0,0.00010915,2]
[346653966,1735153832947,-500.0,0.00010915,2]
[346653968,1735153832956,-500.0,0.00010915,2]
[346653970,1735153832966,-500.0,0.00010915,2]
[346653972,1735153832975,-500.0,0.00010915,2]
[346653974,1735153832984,-436.39377782,0.00010915,2]
[346653976,1735153832993,-500.0,0.00010915,2]
[346653978,1735153833003,-500.0,0.00010915,2]
[346653980,1735153833012,-500.0,0.00010915,2]
[346653982,1735153833021,-500.0,0.00010915,2]
[346653984,1735153833031,-500.0,0.00010916,2]
[346653986,1735153833040,-500.0,0.00010916,2]
[346653988,1735153833050,-500.0,0.00010916,2]
[346653990,1735153833060,-72.9746022,0.00010916,2]
[346653992,1735153833073,-427.0253978,0.00010916,2]
[346653994,1735153833083,-524.04,0.00010916,2]
[346653996,1735153833093,-500.0,0.00010916,2]
[346653998,1735153833102,-500.0,0.00010916,2]
[346654000,1735153833112,-500.0,0.00010916,2]
[346654002,1735153833122,-500.0,0.00010916,2]
[346654004,1735153833132,-500.0,0.00010916,2]
[346654006,1735153833143,-500.0,0.00010916,2]
[346654009,1735153833153,-500.0,0.00010916,2]
[346654011,1735153833162,-282.82,0.00010916,2]
[346654013,1735153833172,-500.0,0.00010916,2]
[346654014,1735153833185,-500.0,0.00010916,2]
[346654016,1735153833194,-500.0,0.00010916,2]
[346654018,1735153833203,-500.0,0.00010916,2]
[346654020,1735153833213,-500.0,0.00010916,2]
[346654022,1735153833223,-500.0,0.00010916,2]
[346654024,1735153833233,-500.0,0.00010916,2]
[346654026,1735153833242,-500.0,0.00010916,2]
[346654028,1735153833252,-644.74,0.00010916,2]
[346654030,1735153833263,-500.0,0.00010916,2]
[346654032,1735153833275,-500.0,0.00010916,2]
[346654034,1735153833285,-500.0,0.00010916,2]
[346654036,1735153833294,-500.0,0.00010916,2]
[346654038,1735153833305,-500.0,0.00010916,2]
[346654040,1735153833315,-500.0,0.00010916,2]
[346654042,1735153833324,-500.0,0.00010916,2]
[346654044,1735153833334,-643.36,0.00010916,2]
[346654046,1735153833343,-500.0,0.00010916,2]
[346654048,1735153833354,-500.0,0.00010916,2]
[346654050,1735153833363,-624.44,0.00010916,2]
[346654052,1735153833372,-500.0,0.00010916,2]
[346654054,1735153833382,-500.0,0.00010916,2]
[346654056,1735153833391,-500.0,0.00010916,2]
[346654058,1735153833400,-500.0,0.00010916,2]
[346654060,1735153833410,-594.7,0.00010916,2]
[346654062,1735153833420,-613.96,0.00010916,2]
[346654064,1735153833429,-500.0,0.00010916,2]
[346654066,1735153833439,-500.0,0.00010916,2]
[346654068,1735153833448,-500.0,0.00010916,2]
[346654070,1735153833458,-500.0,0.00010916,2]
[346654072,1735153833467,-500.0,0.00010916,2]
[346654074,1735153833477,-621.28,0.00010916,2]
[346654076,1735153833487,-625.78,0.00010916,2]
[346654078,1735153833497,-500.0,0.00010916,2]
[346654080,1735153833506,-500.0,0.00010916,2]
[346654082,1735153833515,-598.15,0.00010916,2]
[346654084,1735153833525,-549.16,0.00010916,2]
[346654086,1735153833535,-500.0,0.00010916,2]
[346654088,1735153833546,-500.0,0.00010916,2]
[346654090,1735153833557,-500.0,0.00010916,2]
[346654092,1735153833567,-500.0,0.00010916,2]
[346654094,1735153833578,-500.0,0.00010916,2]
[346654096,1735153833591,-79.21442179,0.00010916,2]
[346654098,1735153833605,-420.78557821,0.00010916,2]
[346654100,1735153833615,-500.0,0.00010916,2]
[346654102,1735153833627,-240.07717217,0.00010916,2]
[346654104,1735153833638,-500.0,0.00010916,2]
[346654106,1735153833649,-500.0,0.00010916,2]
[346654108,1735153833659,-500.0,0.00010916,2]
[346654110,1735153833670,-508.44650873,0.00010916,2]
[346654112,1735153833680,-500.0,0.00010916,2]
[346654115,1735153833690,-3348.02,0.00010916,2]
[346654116,1735153833700,-500.0,0.00010916,2]
[346654119,1735153833710,-559.34,0.00010916,2]
[346654121,1735153833720,-500.0,0.00010916,2]
[346654123,1735153833730,-500.0,0.00010916,2]
[346654125,1735153833739,-500.0,0.00010916,2]
[346654127,1735153833749,-159.97175692,0.00010916,2]
[346654129,1735153833762,-340.02824308,0.00010916,2]
[346654131,1735153833772,-500.0,0.00010916,2]
[346654133,1735153833782,-503.25,0.00010916,2]
[346654135,1735153833792,-500.0,0.00010916,2]
[346654137,1735153833802,-500.0,0.00010916,2]
[346654139,1735153833812,-500.0,0.00010916,2]
[346654141,1735153833822,-500.0,0.00010916,2]
[346654143,1735153833832,-1291.99,0.00010917,2]
[346654145,1735153833841,-932.56,0.00010917,2]
[346654147,1735153833851,-500.0,0.00010917,2]
[346654149,1735153833860,-500.0,0.00010917,2]
[346654151,1735153833870,-181.04414917,0.00010917,2]
[346654557,1735153837901,-500.0,0.00010915,2]
[346654559,1735153837911,-500.0,0.00010915,2]
[346654561,1735153837920,-357.06585083,0.00010917,2]
[346654563,1735153837929,-1554.51734727,0.00010918,2]
[346654565,1735153837941,-1649.302789,0.00010918,2]
[346654568,1735153837952,-789.826,0.00010918,2]
[346654570,1735153837963,-4298.4,0.00010918,2]
[346654572,1735153837975,-1102.30051915,0.00010918,2]
[346654574,1735153837986,-5000.0,0.00010918,2]
[346654576,1735153837997,-10505.65334458,0.00010918,2]
[346654578,1735153838007,-198.75222412,0.00010939,2]
[346654580,1735153838017,-500.0,0.0001094,2]
[346654582,1735153838026,-500.0,0.0001094,2]
[346654584,1735153838036,-500.0,0.0001094,2]
[346654586,1735153838046,-500.0,0.0001094,2]
[346654588,1735153838055,-561.21,0.0001094,2]
[346654590,1735153838064,-577.22,0.0001094,2]
[346654592,1735153838074,-591.67,0.0001094,2]
[346654594,1735153838084,-571.63,0.0001094,2]
[346654596,1735153838093,-500.0,0.0001094,2]
[346654598,1735153838103,-639.52,0.0001094,2]
[346654600,1735153838112,-500.0,0.0001094,2]
[346654602,1735153838121,-500.0,0.0001094,2]
[346654604,1735153838131,-500.0,0.0001094,2]
[346654606,1735153838140,-500.0,0.0001094,2]
[346654608,1735153838149,-500.0,0.0001094,2]
[346654610,1735153838159,-500.0,0.0001094,2]
[346654612,1735153838168,-500.0,0.0001094,2]
[346654614,1735153838180,-500.0,0.0001094,2]
[346654617,1735153838191,-587.2,0.0001094,2]
[346654619,1735153838200,-500.0,0.0001094,2]
[346654620,1735153838210,-500.0,0.0001094,2]
[346654622,1735153838219,-500.0,0.0001094,2]
[346654624,1735153838229,-500.0,0.0001094,2]
[346654626,1735153838238,-500.0,0.0001094,2]
[346654628,1735153838247,-500.0,0.00010941,2]
[346654630,1735153838257,-500.0,0.00010941,2]
[346654632,1735153838267,-500.0,0.00010941,2]
[346654635,1735153838281,-500.0,0.00010941,2]
[346654637,1735153838292,-534.43,0.00010941,2]
[346654639,1735153838303,-500.0,0.00010941,2]
[346654641,1735153838312,-500.0,0.00010941,2]
[346654643,1735153838322,-500.0,0.00010941,2]
[346654645,1735153838331,-153.65776636,0.00010941,2]
[346654801,1735153840057,-630.54,0.00010915,2]
[346654803,1735153840067,-346.34223364,0.00010941,2]
[346654805,1735153840077,-500.0,0.00010941,2]
[346654807,1735153840086,-500.0,0.00010941,2]
[346654809,1735153840095,-500.0,0.00010941,2]
[346654811,1735153840105,-500.0,0.00010941,2]
[346654813,1735153840114,-328.96582412,0.00010941,2]
[346654815,1735153840126,-171.03417588,0.00010941,2]
[346654817,1735153840136,-417.3165123,0.00010941,2]
[346654819,1735153840146,-500.0,0.00010941,2]
[346654821,1735153840156,-2998.8236256,0.00010959,2]
[346654823,1735153840165,-405.51,0.00011188,2]
[346654825,1735153840174,-500.0,0.00011189,2]
[346654827,1735153840186,-301.55,0.00011189,2]
[346654829,1735153840196,-1862.41,0.00011189,2]
[346654831,1735153840205,-682.87,0.00011189,2]
[346654833,1735153840214,-400.43,0.00011189,2]
[346654835,1735153840223,-460.08,0.00011189,2]
[346654837,1735153840234,-500.0,0.00011189,2]
[346654839,1735153840243,-280.49,0.00011189,2]
[346654841,1735153840253,-500.0,0.00011189,2]
[346654843,1735153840265,-862.68,0.00011189,2]
[346654845,1735153840274,-500.0,0.00011189,2]
[346654847,1735153840283,-500.0,0.00011189,2]
[346654848,1735153840293,-500.0,0.00011189,2]
[346654851,1735153840302,-500.0,0.00011189,2]
[346654853,1735153840312,-500.0,0.00011189,2]
[346654855,1735153840321,-644.61,0.00011189,2]
[346654857,1735153840332,-500.0,0.00011189,2]
[346654859,1735153840341,-500.0,0.00011189,2]
[346654861,1735153840350,-598.11,0.00011189,2]
[346654863,1735153840362,-500.0,0.00011189,2]
[346654865,1735153840371,-500.0,0.00011189,2]
[346654867,1735153840381,-500.0,0.00011189,2]
[346654869,1735153840390,-291.57,0.00011189,2]
[346654871,1735153840401,-208.57,0.0001119,2]
[346654873,1735153840410,-500.0,0.0001119,2]
[346654875,1735153840419,-161.87,0.0001119,2]
[346654877,1735153840428,-349.56,0.0001119,2]
[346654879,1735153840438,-500.0,0.0001119,2]
[346654881,1735153840447,-500.0,0.0001119,2]
[346654883,1735153840456,-414.53,0.0001119,2]
[346654885,1735153840466,-500.0,0.0001119,2]
[346654887,1735153840475,-500.0,0.0001119,2]
[346654889,1735153840485,-500.0,0.0001119,2]
[346654891,1735153840494,-500.0,0.0001119,2]
[346654893,1735153840503,-500.0,0.0001119,2]
[346654894,1735153840512,-500.0,0.0001119,2]
[346654896,1735153840521,-192.07,0.0001119,2]
[346654898,1735153840530,-272.82,0.0001119,2]
[346654900,1735153840539,-500.0,0.0001119,2]
[346654902,1735153840548,-500.0,0.0001119,2]
[346654904,1735153840558,-303.91,0.0001119,2]
[346654917,1735153840670,-500.0,0.0001119,2]
[346654919,1735153840680,-160.89,0.0001119,2]
[346654921,1735153840689,-373.62,0.0001119,2]
[346654923,1735153840699,-500.0,0.0001119,2]
[346654925,1735153840709,-500.0,0.0001119,2]
[346654927,1735153840718,-500.0,0.0001119,2]
[346654929,1735153840727,-500.0,0.0001119,2]
[346654931,1735153840736,-230.83,0.0001119,2]
[346654933,1735153840745,-500.0,0.0001119,2]
[346654935,1735153840754,-487.6,0.0001119,2]
[346654937,1735153840764,-192.3,0.0001119,2]
[346654938,1735153840773,-45.9565948,0.0001119,2]
[346654948,1735153840856,-143.9934052,0.0001119,2]
[346654950,1735153840866,-500.0,0.0001119,2]
[346654952,1735153840876,-3348.02,0.0001119,2]
[346654954,1735153840885,-500.0,0.0001119,2]
[346654956,1735153840894,-500.0,0.0001119,2]
[346654958,1735153840904,-932.56,0.00011191,2]
[346654960,1735153840913,-500.0,0.00011191,2]
[346654962,1735153840922,-500.0,0.00011214,2]
[346654964,1735153840931,-500.0,0.00011214,2]
[346654966,1735153840940,-500.0,0.00011214,2]
[346654968,1735153840950,-225.86,0.00011214,2]
[346654970,1735153840959,-170.48,0.00011214,2]
[346654972,1735153840968,-500.0,0.00011214,2]
[346654974,1735153840977,-597.78,0.00011214,2]
[346654976,1735153840986,-500.0,0.00011214,2]
[346654978,1735153840995,-334.36,0.00011214,2]
[346654980,1735153841004,-545.61,0.00011214,2]
[346654982,1735153841013,-516.79,0.00011214,2]
[346654984,1735153841022,-157.02,0.00011215,2]
[346654986,1735153841031,-181.39,0.00011215,2]
[346654987,1735153841040,-306.21,0.00011215,2]
[346654989,1735153841051,-208.7,0.00011215,2]
[346654992,1735153841062,-445.59,0.00011215,2]
[346654994,1735153841073,-273.06,0.00011215,2]
[346654996,1735153841085,-341.26,0.00011463,2]
[346654997,1735153841096,-1862.41,0.00011463,2]
[346654999,1735153841105,-682.87,0.00011463,2]
[346655001,1735153841115,-361.85,0.00011463,2]
[346655003,1735153841124,-500.0,0.00011463,2]
[346655005,1735153841133,-862.68,0.00011463,2]
[346655007,1735153841143,-500.0,0.00011463,2]
[346655009,1735153841153,-182.14363597,0.00011463,2]
[346655016,1735153841216,-317.85636403,0.00011463,2]
[346655018,1735153841227,-439.08,0.00011463,2]
[346655021,1735153841237,-500.0,0.00011463,2]
[346655023,1735153841247,-500.0,0.00011463,2]
[346655024,1735153841258,-500.0,0.00011463,2]
[346655026,1735153841269,-500.0,0.00011463,2]
[346655028,1735153841278,-500.0,0.00011463,2]
[346655030,1735153841287,-500.0,0.00011463,2]
[346655032,1735153841297,-42.57228595,0.00011463,2]
[346655035,1735153841309,-457.42771405,0.00011463,2]
[346655037,1735153841318,-398.99,0.00011464,2]
[346655038,1735153841327,-455.44,0.00011464,2]
[346655040,1735153841337,-500.0,0.00011464,2]
[346655042,1735153841347,-500.0,0.00011464,2]
[346655044,1735153841356,-291.11,0.00011464,2]
[346655046,1735153841365,-500.0,0.00011464,2]
[346655048,1735153841374,-147.03228595,0.00011464,2]
[346655219,1735153842977,-500.0,0.00010916,2]
[346655221,1735153842986,-315.44877714,0.0001119,2]
[346655223,1735153842998,-143.94122286,0.0001119,2]
[346655225,1735153843007,-244.83771405,0.00011464,2]
[346655227,1735153843016,-361.86997409,0.00011464,2]
[346655246,1735153843183,-166.68002591,0.00011464,2]
[346655248,1735153843193,-469.68,0.00011464,2]
[346655250,1735153843203,-619.64,0.00011464,2]
[346655252,1735153843211,-500.0,0.00011464,2]
[346655254,1735153843220,-424.22956148,0.00011464,2]
[346655539,1735153845984,-854.85,0.00010916,2]
[346655541,1735153845993,-854.85,0.0001119,2]
[346655543,1735153846003,-75.77043852,0.00011464,2]
[346655546,1735153846013,-500.0,0.00011464,2]
[346655547,1735153846024,-500.0,0.00011464,2]
[346655550,1735153846034,-500.0,0.00011464,2]
[346655552,1735153846044,-286.26461351,0.00011464,2]
[346655553,1735153846053,-500.0,0.00011464,2]
[346655555,1735153846063,-268.41,0.00011464,2]
[346655557,1735153846072,-3348.02,0.00011464,2]
[346655559,1735153846082,-500.0,0.00011464,2]
[346655562,1735153846093,-500.0,0.00011464,2]
[346655564,1735153846103,-854.85,0.00011464,2]
[346655566,1735153846111,-432.36,0.00011465,2]
[346655568,1735153846121,-571.15,0.00011488,2]
[346655570,1735153846130,-224.52,0.00011488,2]
[346655572,1735153846141,-500.0,0.00011488,2]
[346655574,1735153846150,-500.0,0.00011488,2]
[346655576,1735153846160,-500.0,0.00011637,2]
[346655578,1735153846170,-1862.41,0.00011737,2]
[346655580,1735153846179,-682.87,0.00011737,2]
[346655582,1735153846192,-500.0,0.00011737,2]
[346655584,1735153846201,-862.68,0.00011737,2]
[346655586,1735153846210,-500.0,0.00011737,2]
[346655588,1735153846219,-500.0,0.00011737,2]
[346655590,1735153846230,-163.57,0.00011737,2]
[346655592,1735153846239,-500.0,0.00011737,2]
[346655594,1735153846248,-500.0,0.00011737,2]
[346655596,1735153846257,-500.0,0.00011737,2]
[346655598,1735153846266,-210.85,0.00011737,2]
[346655600,1735153846275,-500.0,0.00011737,2]
[346655602,1735153846285,-500.0,0.00011737,2]
[346655604,1735153846294,-500.0,0.00011738,2]
[346655606,1735153846303,-563.14,0.00011738,2]
[346655608,1735153846313,-500.0,0.00011738,2]
[346655610,1735153846323,-500.0,0.00011738,2]
[346655612,1735153846332,-500.0,0.00011738,2]
[346655614,1735153846341,-500.0,0.00011738,2]
[346655616,1735153846351,-500.0,0.00011738,2]
[346655618,1735153846360,-532.77,0.00011738,2]
[346655620,1735153846369,-239.05,0.00011738,2]
[346655622,1735153846379,-586.89061598,0.00011738,2]
[346655627,1735153846420,-2761.12938402,0.00011738,2]
[346655629,1735153846430,-500.0,0.00011738,2]
[346655631,1735153846439,-569.67,0.00011738,2]
[346655633,1735153846448,-570.99,0.00011762,2]
[346655635,1735153846458,-500.0,0.00011762,2]
[346655637,1735153846467,-420.0,0.00011994,2]
[346655639,1735153846476,-420.0,0.00012005,2]
[346655641,1735153846485,-1862.41,0.00012011,2]
[346655643,1735153846495,-682.87,0.00012011,2]
[346655645,1735153846504,-500.0,0.00012011,2]
[346655647,1735153846514,-862.68,0.00012011,2]
[346655649,1735153846523,-500.0,0.00012011,2]
[346655651,1735153846533,-500.0,0.00012011,2]
[346655653,1735153846542,-500.0,0.00012011,2]
[346655655,1735153846551,-500.0,0.00012011,2]
[346655657,1735153846560,-597.03,0.00012011,2]
[346655659,1735153846570,-500.0,0.00012011,2]
[346655661,1735153846579,-500.0,0.00012011,2]
[346655663,1735153846588,-500.0,0.00012012,2]
[346655665,1735153846597,-500.0,0.00012012,2]
[346655667,1735153846607,-262.57,0.00012012,2]
[346655669,1735153846616,-352.17,0.00012012,2]
[346655671,1735153846625,-500.0,0.00012012,2]
[346655673,1735153846634,-500.0,0.00012012,2]
[346655675,1735153846643,-2716.08061597,0.00012012,2]
[346655678,1735153846654,-631.93938403,0.00012012,2]
[346655680,1735153846664,-196.44,0.00012012,2]
[346655682,1735153846673,-342.68,0.00012036,2]
[346655683,1735153846682,-105.2219728,0.00012185,2]
[346655686,1735153846693,-371.35201545,0.00012185,2]
[346655692,1735153846739,-523.42601175,0.00012185,2]
[346655694,1735153846748,-1862.41,0.00012285,2]
[346655696,1735153846757,-682.87,0.00012285,2]
[346655698,1735153846767,-500.0,0.00012285,2]
[346655700,1735153846776,-862.68,0.00012285,2]
[346655702,1735153846785,-500.0,0.00012285,2]
[346655704,1735153846794,-500.0,0.00012285,2]
[346655706,1735153846803,-594.29,0.00012285,2]
[346655708,1735153846812,-500.0,0.00012285,2]
[346655710,1735153846821,-646.89,0.00012285,2]
[346655712,1735153846830,-500.0,0.00012285,2]
[346655714,1735153846839,-452.5,0.00012286,2]
[346655716,1735153846848,-500.0,0.00012286,2]
[346655718,1735153846858,-500.0,0.00012286,2]
[346655720,1735153846867,-500.0,0.00012286,2]
[346655722,1735153846876,-3348.02,0.00012286,2]
[346655724,1735153846887,-1862.41,0.00012559,2]
[346655726,1735153846897,-682.87,0.00012559,2]
[346655728,1735153846906,-500.0,0.00012559,2]
[346655730,1735153846915,-862.68,0.00012559,2]
[346655732,1735153846924,-500.0,0.00012559,2]
[346655734,1735153846933,-500.0,0.00012559,2]
[346655736,1735153846942,-500.0,0.00012559,2]
[346655738,1735153846951,-500.0,0.00012559,2]
[346655740,1735153846960,-500.0,0.0001256,2]
[346655742,1735153846970,-309.95,0.0001256,2]
[346655754,1735153847073,-643.45,0.0001256,2]
[346655756,1735153847083,-3348.02,0.0001256,2]
[346655758,1735153847092,-973.78,0.000128,2]
[346655760,1735153847101,-1862.41,0.00012833,2]
[346655762,1735153847110,-682.87,0.00012833,2]
[346655764,1735153847119,-500.0,0.00012833,2]
[346655766,1735153847130,-862.68,0.00012833,2]
[346655769,1735153847140,-342.66,0.00012833,2]
[346655771,1735153847150,-500.0,0.00012833,2]
[346655772,1735153847160,-500.0,0.00012833,2]
[346655774,1735153847169,-500.0,0.00012833,2]
[346655776,1735153847178,-500.0,0.00012834,2]
[346655779,1735153847193,-3348.02,0.00012834,2]
[346655781,1735153847203,-3705.55798797,0.00012977,2]
[346655782,1735153847213,-1862.41,0.00013107,2]
[346655784,1735153847223,-682.87,0.00013107,2]
[346655787,1735153847236,-500.0,0.00013107,2]
[346655789,1735153847245,-862.68,0.00013107,2]
[346655791,1735153847254,-500.0,0.00013107,2]
[346655793,1735153847266,-500.0,0.00013107,2]
[346655795,1735153847275,-500.0,0.00013107,2]
[346655797,1735153847285,-500.0,0.00013108,2]
[346655799,1735153847295,-2179.42311872,0.00013108,2]
[346656740,1735154457767,709.4443236,0.00010031,2]
[346656741,1735154494161,716.9289003,0.00010031,2]
[346656742,1735154510496,716.9289003,0.00010031,2]
[346656743,1735154525735,716.9289003,0.00010031,2]
[346656744,1735154541484,716.9289003,0.00010031,2]
[346656745,1735154556660,716.9289003,0.00010031,2]
[346656746,1735154571807,716.9289003,0.00010031,2]
[346656747,1735154587534,710.21511893,0.00010031,2]
[346656755,1735154919481,196.10403568,0.00010031,2]
[346656818,1735155032341,-716.9289003,0.00010133,2]
[346656820,1735155032350,-300.0,0.00010258,2]
[346656821,1735155032359,-300.0,0.00010258,2]
[346656823,1735155032370,-24900.0,0.00010259,2]
[346656826,1735155032380,-7615.17401387,0.000111,2]
[346656828,1735155032391,-5686.36525053,0.000111,2]
[346657165,1735155038040,-326.26597531,0.00011099,2]
[346657167,1735155038049,-201.46846551,0.00011099,2]
[346657169,1735155038059,-583.40108742,0.00011099,2]
[346657171,1735155038068,-500.0,0.00011099,2]
[346657172,1735155038078,-500.0,0.00011099,2]
[346657174,1735155038087,-376.63096819,0.00011099,2]
[346657176,1735155038097,-500.0,0.00011099,2]
[346657178,1735155038108,-622.33149153,0.00011099,2]
[346657180,1735155038117,-500.0,0.00011099,2]
[346657181,1735155038126,-13336.1487017,0.000111,2]
[346657182,1735155038142,-3522.43744891,0.000111,2]
[346657183,1735155038151,-420.0,0.00011281,2]
[346657184,1735155038161,-420.0,0.00011284,2]